fUSD/lending_fUSD_20260617
["ID","MTS","AMOUNT","RATE_DAILY","PERIOD"]
[425250876,1781634660000,-100000.0,0.00032232,7]
[425250859,1781634660000,-644.79446245,0.00032087,2]
[425250874,1781634660000,-1022.96,0.000322,30]
[425250872,1781634660000,-1022.96,0.00032171,30]
[425250869,1781634660000,-152.0,0.00032133,9]
[425250877,1781634660000,-151.0,0.00032232,7]
[425250879,1781634660000,-151.0,0.00032232,7]
[425250881,1781634660000,-637.0,0.0003224,2]
[425250880,1781634660000,-1131.0,0.0003224,2]
[425250878,1781634660000,-151.0,0.00032232,7]
[425250882,1781634660000,-377.0,0.00032264,2]
[425250884,1781634660000,-44794.35703056,0.000323,120]
[425250886,1781634660000,-600.0,0.000323,120]
[425250883,1781634660000,-246.96,0.00032275,11]
[425250890,1781634660000,-2239.76880057,0.00032329,30]
[425250887,1781634660000,-600.0,0.000323,120]
[425250864,1781634660000,-1022.96,0.000321,30]
[425250871,1781634660000,-1022.96,0.00032157,30]
[425250860,1781634660000,-747.80937859,0.00032087,2]
[425250892,1781634660000,-213.73675317,0.00032344,14]
[425250865,1781634660000,-8981.95412011,0.00032111,5]
[425250837,1781634660000,-150.0,0.00032041,30]
[425250842,1781634660000,-418.0,0.00032049,30]
[425250840,1781634660000,-1022.96,0.00032043,30]
[425250843,1781634660000,-304.0,0.00032049,30]
[425250839,1781634660000,-278.0,0.00032041,30]
[425250841,1781634660000,-418.0,0.00032049,30]
[425250838,1781634660000,-150.0,0.00032041,30]
[425250844,1781634660000,-1853.0,0.00032049,30]
[425250846,1781634660000,-346.0,0.00032049,30]
[425250855,1781634660000,-1022.96,0.00032071,30]
[425250845,1781634660000,-2694.0,0.00032049,30]
[425250862,1781634660000,-2886.11,0.000321,7]
[425250847,1781634660000,-328.0,0.00032049,30]
[425250848,1781634660000,-792.0,0.00032049,30]
[425250852,1781634660000,-335.0,0.00032049,30]
[425250851,1781634660000,-1535.0,0.00032049,30]
[425250853,1781634660000,-819.0,0.00032049,30]
[425250854,1781634660000,-1022.96,0.00032057,30]
[425250850,1781634660000,-514.0,0.00032049,30]
[425250856,1781634660000,-525.59317074,0.00032078,2]
[425250858,1781634660000,-151.0,0.00032087,2]
[425250857,1781634660000,-1022.96,0.00032086,30]
[425250861,1781634660000,-301.14337869,0.0003209,2]
[425250863,1781634660000,-1944.57,0.000321,7]
[425250849,1781634660000,-438.0,0.00032049,30]
[425250893,1781634660000,-150.0,0.00032345,2]
[425250885,1781634660000,-912.66566839,0.000323,2]
[425250888,1781634660000,-508.0,0.000323,120]
[425250920,1781634660000,-200.0,0.000324,12]
[425250927,1781634660000,-200.0,0.000325,120]
[425250923,1781634660000,-723.0,0.00032477,7]
[425250930,1781634660000,-1000.0,0.000325,7]
[425250922,1781634660000,-160.0,0.00032471,11]
[425250929,1781634660000,-1000.0,0.000325,2]
[425250924,1781634660000,-525.59317074,0.00032481,2]
[425250921,1781634660000,-1233.98,0.000324,7]
[425250925,1781634660000,-153.1566,0.00032494,2]
[425250928,1781634660000,-1000.0,0.000325,2]
[425250926,1781634660000,-1000.0,0.000325,120]
[425250917,1781634660000,-1734.78,0.00032347,2]
[425250932,1781634660000,-1000.0,0.000325,14]
[425250936,1781634660000,-1234.56180429,0.00032548,7]
[425250937,1781634660000,-1275.61660386,0.00032548,2]
[425250940,1781634660000,-1172.35097498,0.00032548,7]
[425250935,1781634660000,-1088.17293392,0.00032548,7]
[425250941,1781634660000,-1683.41270108,0.00032548,7]
[425250934,1781634660000,-1091.36671877,0.00032548,7]
[425250939,1781634660000,-1193.70996033,0.00032548,7]
[425250938,1781634660000,-1151.48109309,0.00032548,7]
[425250943,1781634660000,-1094.40281298,0.00032557,7]
[425250942,1781634660000,-1134.78151313,0.00032557,7]
[425250891,1781634660000,-1000.0,0.00032337,2]
[425250933,1781634660000,-1325.94757332,0.000325,14]
[425250914,1781634660000,-150.0,0.00032346,30]
[425250931,1781634660000,-1000.0,0.000325,7]
[425250915,1781634660000,-150.0,0.00032346,30]
[425250912,1781634660000,-150.0,0.00032346,30]
[425250889,1781634660000,-2356.11873826,0.00032329,2]
[425250895,1781634660000,-150.0,0.00032345,2]
[425250944,1781634660000,-1201.48165547,0.00032557,7]
[425250896,1781634660000,-150.0,0.00032345,2]
[425250894,1781634660000,-150.0,0.00032345,2]
[425250898,1781634660000,-150.0,0.00032345,2]
[425250899,1781634660000,-150.0,0.00032345,2]
[425250900,1781634660000,-498.54,0.00032346,30]
[425250903,1781634660000,-200.0,0.00032346,30]
[425250908,1781634660000,-450.0,0.00032346,30]
[425250904,1781634660000,-200.0,0.00032346,30]
[425250897,1781634660000,-150.0,0.00032345,2]
[425250913,1781634660000,-150.0,0.00032346,30]
[425250916,1781634660000,-254.0,0.00032346,30]
[425250907,1781634660000,-450.0,0.00032346,30]
[425250911,1781634660000,-198.0,0.00032346,30]
[425250919,1781634660000,-482.47,0.00032383,2]
[425250918,1781634660000,-1864.28,0.00032347,5]
[425250909,1781634660000,-450.0,0.00032346,30]
[425250905,1781634660000,-228.0,0.00032346,30]
[425250906,1781634660000,-450.0,0.00032346,30]
[425250901,1781634660000,-200.0,0.00032346,30]
[425250902,1781634660000,-200.0,0.00032346,30]
[425250910,1781634660000,-450.0,0.00032346,30]
[425250980,1781634661000,-500.0,0.00032847,2]
[425250983,1781634661000,-409.92050647,0.00032847,2]
[425250984,1781634661000,-150.328571,0.00032857,2]
[425250981,1781634661000,-500.0,0.00032847,2]
[425250977,1781634661000,-500.0,0.00032847,2]
[425250976,1781634661000,-500.0,0.00032847,2]
[425250979,1781634661000,-500.0,0.00032847,2]
[425250982,1781634661000,-500.0,0.00032847,2]
[425250975,1781634661000,-500.0,0.00032847,2]
[425250986,1781634661000,-300.0,0.00032872,30]
[425250978,1781634661000,-500.0,0.00032847,2]
[425250996,1781634661000,-1000.0,0.00032877,10]
[425250999,1781634661000,-1000.0,0.00032877,10]
[425250985,1781634661000,-205.0,0.0003286,30]
[425250987,1781634661000,-476.10443138,0.00032873,2]
[425250989,1781634661000,-4505.0,0.00032877,5]
[425250988,1781634661000,-410.0,0.00032877,2]
[425250992,1781634661000,-1000.0,0.00032877,10]
[425250993,1781634661000,-1000.0,0.00032877,10]
[425250991,1781634661000,-1000.0,0.00032877,10]
[425250990,1781634661000,-178.366787,0.00032877,7]
[425250994,1781634661000,-1000.0,0.00032877,10]
[425250998,1781634661000,-1000.0,0.00032877,10]
[425250997,1781634661000,-1000.0,0.00032877,10]
[425250972,1781634661000,-500.0,0.00032847,2]
[425250995,1781634661000,-1000.0,0.00032877,10]
[425250974,1781634661000,-500.0,0.00032847,2]
[425250945,1781634661000,-1166.25100679,0.00032557,7]
[425250970,1781634661000,-1944.57,0.000328,7]
[425250947,1781634661000,-1151.28194925,0.00032557,7]
[425250949,1781634661000,-1128.63241225,0.00032557,7]
[425251005,1781634661000,-1000.0,0.00032877,10]
[425250946,1781634661000,-1222.26878751,0.00032557,7]
[425250948,1781634661000,-1095.76522608,0.00032557,7]
[425250952,1781634661000,-500.0,0.00032585,30]
[425250950,1781634661000,-150.0,0.00032562,2]
[425250951,1781634661000,-511.67721108,0.00032574,2]
[425250954,1781634661000,-1065.77893184,0.00032593,7]
[425250963,1781634661000,-700.0,0.000328,120]
[425250962,1781634661000,-449.71086372,0.000328,7]
[425250956,1781634661000,-1242.28550888,0.00032593,7]
[425250973,1781634661000,-500.0,0.00032847,2]
[425250953,1781634661000,-500.0,0.00032585,30]
[425250959,1781634661000,-3267.01,0.00032733,30]
[425250961,1781634661000,-4931.66398787,0.000328,2]
[425250958,1781634661000,-200.0,0.00032694,4]
[425250957,1781634661000,-1080.56138748,0.00032593,7]
[425250960,1781634661000,-2239.76880057,0.0003274,30]
[425250964,1781634661000,-700.0,0.000328,120]
[425250966,1781634661000,-1650.0,0.000328,120]
[425250971,1781634661000,-500.0,0.00032847,2]
[425250965,1781634661000,-656.0,0.000328,120]
[425250969,1781634661000,-2886.11,0.000328,7]
[425250967,1781634661000,-1650.0,0.000328,120]
[425250968,1781634661000,-1596.0,0.000328,120]
[425250955,1781634661000,-1136.08232803,0.00032593,7]
[425251002,1781634661000,-1000.0,0.00032877,10]
[425251003,1781634661000,-1000.0,0.00032877,10]
[425251001,1781634661000,-1000.0,0.00032877,10]
[425251035,1781634661000,-1000.0,0.00032877,10]
[425251034,1781634661000,-1000.0,0.00032877,10]
[425251045,1781634661000,-1000.0,0.00032877,10]
[425251036,1781634661000,-1000.0,0.00032877,10]
[425251037,1781634661000,-1000.0,0.00032877,10]
[425251041,1781634661000,-1000.0,0.00032877,10]
[425251044,1781634661000,-1000.0,0.00032877,10]
[425251043,1781634661000,-1000.0,0.00032877,10]
[425251040,1781634661000,-1000.0,0.00032877,10]
[425251042,1781634661000,-1000.0,0.00032877,10]
[425251039,1781634661000,-1000.0,0.00032877,10]
[425251046,1781634661000,-1000.0,0.00032877,10]
[425251038,1781634661000,-1000.0,0.00032877,10]
[425251048,1781634661000,-1000.0,0.00032877,10]
[425251047,1781634661000,-1000.0,0.00032877,10]
[425251050,1781634661000,-1000.0,0.00032877,10]
[425251056,1781634661000,-1000.0,0.00032877,10]
[425251053,1781634661000,-1000.0,0.00032877,10]
[425251054,1781634661000,-1000.0,0.00032877,10]
[425251052,1781634661000,-1000.0,0.00032877,10]
[425251057,1781634661000,-1000.0,0.00032877,10]
[425251055,1781634661000,-1000.0,0.00032877,10]
[425251059,1781634661000,-1000.0,0.00032877,10]
[425251058,1781634661000,-1000.0,0.00032877,10]
[425251060,1781634661000,-1000.0,0.00032877,10]
[425251007,1781634661000,-1000.0,0.00032877,10]
[425251051,1781634661000,-1000.0,0.00032877,10]
[425251033,1781634661000,-1000.0,0.00032877,10]
[425251049,1781634661000,-1000.0,0.00032877,10]
[425251029,1781634661000,-1000.0,0.00032877,10]
[425251030,1781634661000,-1000.0,0.00032877,10]
[425251008,1781634661000,-1000.0,0.00032877,10]
[425251006,1781634661000,-1000.0,0.00032877,10]
[425251000,1781634661000,-1000.0,0.00032877,10]
[425251010,1781634661000,-1000.0,0.00032877,10]
[425251009,1781634661000,-1000.0,0.00032877,10]
[425251020,1781634661000,-1000.0,0.00032877,10]
[425251012,1781634661000,-1000.0,0.00032877,10]
[425251011,1781634661000,-1000.0,0.00032877,10]
[425251013,1781634661000,-1000.0,0.00032877,10]
[425251014,1781634661000,-1000.0,0.00032877,10]
[425251018,1781634661000,-1000.0,0.00032877,10]
[425251015,1781634661000,-1000.0,0.00032877,10]
[425251004,1781634661000,-1000.0,0.00032877,10]
[425251016,1781634661000,-1000.0,0.00032877,10]
[425251017,1781634661000,-1000.0,0.00032877,10]
[425251022,1781634661000,-1000.0,0.00032877,10]
[425251028,1781634661000,-1000.0,0.00032877,10]
[425251027,1781634661000,-1000.0,0.00032877,10]
[425251032,1781634661000,-1000.0,0.00032877,10]
[425251025,1781634661000,-1000.0,0.00032877,10]
[425251031,1781634661000,-1000.0,0.00032877,10]
[425251024,1781634661000,-1000.0,0.00032877,10]
[425251026,1781634661000,-1000.0,0.00032877,10]
[425251021,1781634661000,-1000.0,0.00032877,10]
[425251019,1781634661000,-1000.0,0.00032877,10]
[425251023,1781634661000,-1000.0,0.00032877,10]
[425251105,1781634662000,-188.955378,0.00032877,7]
[425251103,1781634662000,-188.955378,0.00032877,7]
[425251095,1781634662000,-151.689703,0.00032877,7]
[425251090,1781634662000,-345.327613,0.00032877,7]
[425251100,1781634662000,-172.886687,0.00032877,7]
[425251097,1781634662000,-151.689703,0.00032877,7]
[425251098,1781634662000,-151.689703,0.00032877,7]
[425251096,1781634662000,-151.689703,0.00032877,7]
[425251094,1781634662000,-345.327613,0.00032877,7]
[425251087,1781634662000,-203.614014,0.00032877,7]
[425251106,1781634662000,-188.955378,0.00032877,7]
[425251099,1781634662000,-172.886687,0.00032877,7]
[425251102,1781634662000,-172.886687,0.00032877,7]
[425251107,1781634662000,-301.88273,0.00032877,7]
[425251101,1781634662000,-172.886687,0.00032877,7]
[425251118,1781634662000,-205.741682,0.00032877,7]
[425251108,1781634662000,-205.741682,0.00032877,7]
[425251111,1781634662000,-280.286577,0.00032877,7]
[425251110,1781634662000,-205.741682,0.00032877,7]
[425251109,1781634662000,-301.88273,0.00032877,7]
[425251112,1781634662000,-301.88273,0.00032877,7]
[425251114,1781634662000,-205.741682,0.00032877,7]
[425251116,1781634662000,-301.88273,0.00032877,7]
[425251117,1781634662000,-151.0,0.00032877,7]
[425251113,1781634662000,-151.0,0.00032877,7]
[425251086,1781634662000,-203.614014,0.00032877,7]
[425251104,1781634662000,-188.955378,0.00032877,7]
[425251088,1781634662000,-345.327613,0.00032877,7]
[425251061,1781634662000,-1000.0,0.00032877,10]
[425251089,1781634662000,-203.614014,0.00032877,7]
[425251062,1781634662000,-1000.0,0.00032877,10]
[425251063,1781634662000,-1000.0,0.00032877,10]
[425251066,1781634662000,-188.634827,0.00032877,7]
[425251065,1781634662000,-188.634827,0.00032877,7]
[425251068,1781634662000,-188.634827,0.00032877,7]
[425251064,1781634662000,-671.0,0.00032877,10]
[425251067,1781634662000,-188.634827,0.00032877,7]
[425251069,1781634662000,-151.0,0.00032877,7]
[425251070,1781634662000,-151.0,0.00032877,7]
[425251071,1781634662000,-151.0,0.00032877,7]
[425251080,1781634662000,-151.0,0.00032877,7]
[425251072,1781634662000,-420.0,0.00032877,7]
[425251091,1781634662000,-203.614014,0.00032877,7]
[425251074,1781634662000,-420.0,0.00032877,7]
[425251073,1781634662000,-204.384618,0.00032877,7]
[425251076,1781634662000,-420.0,0.00032877,7]
[425251075,1781634662000,-151.0,0.00032877,7]
[425251077,1781634662000,-151.0,0.00032877,7]
[425251079,1781634662000,-151.0,0.00032877,7]
[425251082,1781634662000,-151.0,0.00032877,7]
[425251092,1781634662000,-156.562957,0.00032877,7]
[425251081,1781634662000,-151.0,0.00032877,7]
[425251083,1781634662000,-151.0,0.00032877,7]
[425251084,1781634662000,-151.0,0.00032877,7]
[425251093,1781634662000,-345.327613,0.00032877,7]
[425251085,1781634662000,-151.0,0.00032877,7]
[425251078,1781634662000,-420.0,0.00032877,7]
[425251119,1781634662000,-254.525842,0.00032877,7]
[425251115,1781634662000,-280.286577,0.00032877,7]
[425251124,1781634662000,-254.525842,0.00032877,7]
[425251152,1781634662000,-166.28585,0.00032877,7]
[425251150,1781634662000,-151.0,0.00032877,7]
[425251153,1781634662000,-166.28585,0.00032877,7]
[425251156,1781634662000,-1574.914658,0.00032877,7]
[425251155,1781634662000,-166.28585,0.00032877,7]
[425251164,1781634662000,-165.495048,0.00032877,7]
[425251166,1781634662000,-1811.955218,0.00032877,7]
[425251165,1781634662000,-500.0,0.00032877,7]
[425251157,1781634662000,-1574.914658,0.00032877,7]
[425251158,1781634662000,-1574.914658,0.00032877,7]
[425251160,1781634662000,-500.0,0.00032877,7]
[425251159,1781634662000,-1574.914658,0.00032877,7]
[425251147,1781634662000,-184.774407,0.00032877,7]
[425251161,1781634662000,-500.0,0.00032877,7]
[425251162,1781634662000,-165.495048,0.00032877,7]
[425251177,1781634662000,-1811.955218,0.00032877,7]
[425251167,1781634662000,-400.0,0.00032877,7]
[425251169,1781634662000,-400.0,0.00032877,7]
[425251171,1781634662000,-151.0,0.00032877,7]
[425251176,1781634662000,-400.0,0.00032877,7]
[425251172,1781634662000,-165.495048,0.00032877,7]
[425251175,1781634662000,-151.0,0.00032877,7]
[425251174,1781634662000,-1811.955218,0.00032877,7]
[425251170,1781634662000,-1811.955218,0.00032877,7]
[425251168,1781634662000,-165.495048,0.00032877,7]
[425251173,1781634662000,-400.0,0.00032877,7]
[425251163,1781634662000,-500.0,0.00032877,7]
[425251149,1781634662000,-927.482927,0.00032877,7]
[425251178,1781634662000,-247.728374,0.00032877,7]
[425251151,1781634662000,-166.28585,0.00032877,7]
[425251148,1781634662000,-151.0,0.00032877,7]
[425251122,1781634662000,-280.286577,0.00032877,7]
[425251127,1781634662000,-244.583144,0.00032877,7]
[425251125,1781634662000,-562.47,0.00032877,2]
[425251120,1781634662000,-280.286577,0.00032877,7]
[425251121,1781634662000,-254.525842,0.00032877,7]
[425251128,1781634662000,-151.0,0.00032877,7]
[425251130,1781634662000,-244.583144,0.00032877,7]
[425251129,1781634662000,-151.0,0.00032877,7]
[425251126,1781634662000,-244.583144,0.00032877,7]
[425251132,1781634662000,-244.583144,0.00032877,7]
[425251142,1781634662000,-184.774407,0.00032877,7]
[425251135,1781634662000,-964.995997,0.00032877,7]
[425251123,1781634662000,-254.525842,0.00032877,7]
[425251133,1781634662000,-964.995997,0.00032877,7]
[425251154,1781634662000,-927.482927,0.00032877,7]
[425251146,1781634662000,-927.482927,0.00032877,7]
[425251144,1781634662000,-927.482927,0.00032877,7]
[425251143,1781634662000,-184.774407,0.00032877,7]
[425251134,1781634662000,-964.995997,0.00032877,7]
[425251139,1781634662000,-3183.125864,0.00032877,7]
[425251145,1781634662000,-184.774407,0.00032877,7]
[425251136,1781634662000,-151.0,0.00032877,7]
[425251140,1781634662000,-3183.125864,0.00032877,7]
[425251141,1781634662000,-3183.125864,0.00032877,7]
[425251137,1781634662000,-964.995997,0.00032877,7]
[425251131,1781634662000,-151.0,0.00032877,7]
[425251138,1781634662000,-3183.125864,0.00032877,7]
[425251216,1781634663000,-234.635032,0.00032877,7]
[425251213,1781634663000,-319.326811,0.00032877,7]
[425251217,1781634663000,-636.872775,0.00032877,7]
[425251221,1781634663000,-636.872775,0.00032877,7]
[425251208,1781634663000,-440.458877,0.00032877,7]
[425251215,1781634663000,-151.0,0.00032877,7]
[425251212,1781634663000,-300.517851,0.00032877,7]
[425251207,1781634663000,-319.326811,0.00032877,7]
[425251206,1781634663000,-300.517851,0.00032877,7]
[425251214,1781634663000,-440.458877,0.00032877,7]
[425251218,1781634663000,-319.326811,0.00032877,7]
[425251226,1781634663000,-500.0,0.00032877,7]
[425251222,1781634663000,-319.326811,0.00032877,7]
[425251220,1781634663000,-151.0,0.00032877,7]
[425251224,1781634663000,-227.497261,0.00032877,7]
[425251223,1781634663000,-500.0,0.00032877,7]
[425251205,1781634663000,-636.872775,0.00032877,7]
[425251225,1781634663000,-339.484082,0.00032877,7]
[425251228,1781634663000,-339.484082,0.00032877,7]
[425251227,1781634663000,-227.497261,0.00032877,7]
[425251231,1781634663000,-339.484082,0.00032877,7]
[425251232,1781634663000,-500.0,0.00032877,7]
[425251229,1781634663000,-500.0,0.00032877,7]
[425251230,1781634663000,-227.497261,0.00032877,7]
[425251233,1781634663000,-227.497261,0.00032877,7]
[425251219,1781634663000,-300.517851,0.00032877,7]
[425251209,1781634663000,-151.0,0.00032877,7]
[425251201,1781634663000,-151.0,0.00032877,7]
[425251210,1781634663000,-234.635032,0.00032877,7]
[425251236,1781634663000,-151.0,0.00032877,7]
[425251183,1781634663000,-151.0,0.00032877,7]
[425251184,1781634663000,-247.728374,0.00032877,7]
[425251187,1781634663000,-290.2149,0.00032877,7]
[425251188,1781634663000,-228.411404,0.00032877,7]
[425251185,1781634663000,-151.0,0.00032877,7]
[425251180,1781634663000,-151.0,0.00032877,7]
[425251181,1781634663000,-247.728374,0.00032877,7]
[425251186,1781634663000,-151.0,0.00032877,7]
[425251182,1781634663000,-151.0,0.00032877,7]
[425251179,1781634663000,-247.728374,0.00032877,7]
[425251189,1781634663000,-290.2149,0.00032877,7]
[425251190,1781634663000,-2625.264621,0.00032877,7]
[425251191,1781634663000,-151.0,0.00032877,7]
[425251193,1781634663000,-290.2149,0.00032877,7]
[425251196,1781634663000,-290.2149,0.00032877,7]
[425251192,1781634663000,-2625.264621,0.00032877,7]
[425251195,1781634663000,-2625.264621,0.00032877,7]
[425251199,1781634663000,-440.458877,0.00032877,7]
[425251198,1781634663000,-2625.264621,0.00032877,7]
[425251197,1781634663000,-151.0,0.00032877,7]
[425251202,1781634663000,-300.517851,0.00032877,7]
[425251211,1781634663000,-636.872775,0.00032877,7]
[425251203,1781634663000,-440.458877,0.00032877,7]
[425251200,1781634663000,-234.635032,0.00032877,7]
[425251204,1781634663000,-234.635032,0.00032877,7]
[425251194,1781634663000,-151.0,0.00032877,7]
[425251235,1781634663000,-151.0,0.00032877,7]
[425251242,1781634663000,-151.0,0.00032877,7]
[425251260,1781634663000,-151.0,0.00032877,7]
[425251267,1781634663000,-151.0,0.00032877,7]
[425251270,1781634663000,-779.734032,0.00032877,7]
[425251279,1781634663000,-561.281623,0.00032877,7]
[425251269,1781634663000,-276.683965,0.00032877,7]
[425251273,1781634663000,-276.683965,0.00032877,7]
[425251271,1781634663000,-151.0,0.00032877,7]
[425251272,1781634663000,-151.0,0.00032877,7]
[425251276,1781634663000,-444.015746,0.00032877,7]
[425251274,1781634663000,-251.606917,0.00032877,7]
[425251275,1781634663000,-561.281623,0.00032877,7]
[425251278,1781634663000,-151.0,0.00032877,7]
[425251281,1781634663000,-444.015746,0.00032877,7]
[425251280,1781634663000,-348.953007,0.00032877,7]
[425251290,1781634663000,-444.015746,0.00032877,7]
[425251286,1781634663000,-444.015746,0.00032877,7]
[425251285,1781634663000,-348.953007,0.00032877,7]
[425251288,1781634663000,-561.281623,0.00032877,7]
[425251282,1781634663000,-151.0,0.00032877,7]
[425251283,1781634663000,-561.281623,0.00032877,7]
[425251289,1781634663000,-348.953007,0.00032877,7]
[425251284,1781634663000,-431.135298,0.00032877,7]
[425251291,1781634663000,-431.135298,0.00032877,7]
[425251287,1781634663000,-431.135298,0.00032877,7]
[425251234,1781634663000,-339.484082,0.00032877,7]
[425251263,1781634663000,-246.847888,0.00032877,7]
[425251261,1781634663000,-779.734032,0.00032877,7]
[425251277,1781634663000,-276.683965,0.00032877,7]
[425251266,1781634663000,-779.734032,0.00032877,7]
[425251259,1781634663000,-246.847888,0.00032877,7]
[425251237,1781634663000,-291.872511,0.00032877,7]
[425251240,1781634663000,-151.0,0.00032877,7]
[425251244,1781634663000,-210.676342,0.00032877,7]
[425251241,1781634663000,-291.872511,0.00032877,7]
[425251239,1781634663000,-291.872511,0.00032877,7]
[425251243,1781634663000,-210.676342,0.00032877,7]
[425251256,1781634663000,-779.734032,0.00032877,7]
[425251246,1781634663000,-210.676342,0.00032877,7]
[425251245,1781634663000,-151.0,0.00032877,7]
[425251247,1781634663000,-151.0,0.00032877,7]
[425251255,1781634663000,-246.847888,0.00032877,7]
[425251254,1781634663000,-245.943395,0.00032877,7]
[425251238,1781634663000,-291.872511,0.00032877,7]
[425251264,1781634663000,-276.683965,0.00032877,7]
[425251248,1781634663000,-151.0,0.00032877,7]
[425251257,1781634663000,-245.943395,0.00032877,7]
[425251265,1781634663000,-151.0,0.00032877,7]
[425251268,1781634663000,-246.847888,0.00032877,7]
[425251258,1781634663000,-151.0,0.00032877,7]
[425251262,1781634663000,-151.0,0.00032877,7]
[425251252,1781634663000,-151.0,0.00032877,7]
[425251249,1781634663000,-210.676342,0.00032877,7]
[425251250,1781634663000,-151.0,0.00032877,7]
[425251251,1781634663000,-245.943395,0.00032877,7]
[425251253,1781634663000,-245.943395,0.00032877,7]
[425251329,1781634664000,-151.0,0.00032877,7]
[425251333,1781634664000,-2023.395163,0.00032877,7]
[425251328,1781634664000,-359.604307,0.00032877,7]
[425251339,1781634664000,-2023.395163,0.00032877,7]
[425251327,1781634664000,-446.097716,0.00032877,7]
[425251316,1781634664000,-824.929484,0.00032877,7]
[425251324,1781634664000,-185.321464,0.00032877,7]
[425251323,1781634664000,-151.0,0.00032877,7]
[425251321,1781634664000,-151.0,0.00032877,7]
[425251331,1781634664000,-151.0,0.00032877,7]
[425251320,1781634664000,-446.097716,0.00032877,7]
[425251322,1781634664000,-359.604307,0.00032877,7]
[425251330,1781634664000,-446.097716,0.00032877,7]
[425251341,1781634664000,-285.509618,0.00032877,7]
[425251334,1781634664000,-446.097716,0.00032877,7]
[425251335,1781634664000,-295.776808,0.00032877,7]
[425251336,1781634664000,-2023.395163,0.00032877,7]
[425251337,1781634664000,-295.776808,0.00032877,7]
[425251332,1781634664000,-359.604307,0.00032877,7]
[425251350,1781634664000,-151.0,0.00032877,7]
[425251349,1781634664000,-804.200528,0.00032877,7]
[425251340,1781634664000,-295.776808,0.00032877,7]
[425251342,1781634664000,-2023.395163,0.00032877,7]
[425251343,1781634664000,-295.776808,0.00032877,7]
[425251345,1781634664000,-285.509618,0.00032877,7]
[425251347,1781634664000,-804.200528,0.00032877,7]
[425251338,1781634664000,-285.509618,0.00032877,7]
[425251314,1781634664000,-824.929484,0.00032877,7]
[425251293,1781634664000,-431.135298,0.00032877,7]
[425251319,1781634664000,-151.0,0.00032877,7]
[425251344,1781634664000,-285.509618,0.00032877,7]
[425251292,1781634664000,-348.953007,0.00032877,7]
[425251295,1781634664000,-318.766613,0.00032877,7]
[425251296,1781634664000,-182.273075,0.00032877,7]
[425251294,1781634664000,-318.766613,0.00032877,7]
[425251297,1781634664000,-318.766613,0.00032877,7]
[425251302,1781634664000,-859.813943,0.00032877,7]
[425251298,1781634664000,-182.273075,0.00032877,7]
[425251299,1781634664000,-318.766613,0.00032877,7]
[425251300,1781634664000,-182.273075,0.00032877,7]
[425251301,1781634664000,-182.273075,0.00032877,7]
[425251304,1781634664000,-859.813943,0.00032877,7]
[425251317,1781634664000,-359.604307,0.00032877,7]
[425251311,1781634664000,-1679.864526,0.00032877,7]
[425251307,1781634664000,-265.323969,0.00032877,7]
[425251303,1781634664000,-859.813943,0.00032877,7]
[425251308,1781634664000,-1679.864526,0.00032877,7]
[425251306,1781634664000,-859.813943,0.00032877,7]
[425251312,1781634664000,-824.929484,0.00032877,7]
[425251310,1781634664000,-824.929484,0.00032877,7]
[425251313,1781634664000,-185.321464,0.00032877,7]